bitfinex-derivatives/quotes_ETHF0:USTF0_20210406
["timestamp","ask_amount","ask_price","bid_price","bid_amount"]
[1617717693880,2.90695,2095.5,2095.2,4.90695]
[1617717695184,2.90695,2095.5,2095.2,5.86995]
[1617717695585,5.87795,2095.5,2095.2,5.86995]
[1617717695784,5.87795,2095.5,2095.2,3.86995]
[1617717695985,5.87795,2095.5,2095.2,2.90695]
[1617717696185,6.83225,2095.5,2093.9,16.0]
[1617717696589,72.7924,2094.9,2093.9,16.0]
[1617717696887,75.7118,2094.9,2093.9,16.0]
[1617717697089,75.7118,2094.9,2094.0,2.0]
[1617717697787,75.7118,2094.9,2094.7,2.90695]
[1617717698086,75.7118,2094.9,2094.7,3.85875]
[1617717698286,75.7118,2094.9,2094.7,2.90695]
[1617717698886,75.7118,2094.9,2094.0,2.0]
[1617717699794,75.7118,2094.9,2094.5,2.90695]
[1617717700394,72.7824,2094.9,2094.5,2.90695]
[1617717701794,2.90695,2094.6,2094.5,2.90695]
[1617717702897,2.88695,2094.6,2094.5,2.90695]
[1617717703598,2.88695,2094.6,2094.0,2.0]
[1617717703798,75.158,2094.9,2094.1,2.90695]
[1617717703998,30.0,2094.8,2094.1,2.90695]
[1617717704399,30.0,2094.8,2093.9,16.0]
[1617717704806,74.9698,2094.0,2093.9,16.0]
[1617717705000,77.3589,2094.0,2093.9,16.0]
[1617717705899,80.26585,2094.0,2093.9,16.0]
[1617717706103,5.29605,2094.0,2093.9,16.0]
[1617717706300,5.29605,2094.0,2093.3,2.90695]
[1617717706703,2.90695,2094.0,2093.4,30.0]
[1617717706901,2.90695,2094.0,2093.3,2.90695]
[1617717707703,2.90695,2094.0,2093.4,2.0]
[1617717707903,0.9468,2094.3,2093.8,2.90695]
[1617717708203,55.1382,2094.8,2093.8,2.90695]
[1617717709403,55.1382,2094.8,2093.8,3.87185]
[1617717709704,55.1382,2094.8,2093.8,2.90695]
[1617717709903,2.90695,2093.9,2093.8,2.90695]
[1617717713705,2.90695,2093.9,2093.8,0.96]
[1617717713906,2.90695,2093.9,2093.4,2.90695]
[1617717715906,2.90695,2093.5,2093.4,2.90695]
[1617717721313,2.90695,2093.5,2093.4,4.90695]
[1617717723317,2.90695,2093.5,2093.4,2.90695]
[1617717723716,2.90695,2093.5,2093.4,3.85225]
[1617717724721,2.90695,2093.5,2093.4,2.90695]
[1617717725131,2.90695,2093.5,2093.4,34.90695]
[1617717725323,2.90695,2093.5,2093.4,4.90695]
[1617717725924,2.90695,2093.5,2093.4,34.90695]
[1617717726127,3.87075,2093.5,2093.4,35.87425]
[1617717726438,2.90695,2093.5,2093.4,4.90695]
[1617717727628,2.90695,2093.5,2093.4,2.90695]
[1617717730829,2.90695,2093.5,2093.4,3.85435]
[1617717731433,2.90695,2093.5,2093.4,2.90695]
[1617717732333,2.90695,2093.5,2091.9,0.9679]
[1617717732334,2.90695,2093.5,2092.4,2.0]
[1617717732930,2.90695,2093.5,2091.9,0.9679]
[1617717734030,78.6554,2093.7,2091.9,0.9679]
[1617717734031,78.6554,2093.7,2092.6,2.90695]
[1617717734230,78.6554,2093.7,2092.6,3.85845]
[1617717734431,78.6554,2093.7,2092.6,2.90695]
[1617717735334,76.7805,2093.7,2092.6,2.90695]
[1617717736032,2.90695,2092.7,2092.6,2.90695]
[1617717736233,2.90695,2092.7,2091.9,2.0]
[1617717736934,2.90695,2092.7,2091.9,32.9639]
[1617717737137,2.90695,2092.7,2091.9,32.0]
[1617717737342,55.9732,2092.4,2091.9,2.0]
[1617717737740,58.3208,2092.4,2091.9,2.0]
[1617717738035,58.3208,2092.4,2092.2,2.90695]
[1617717739636,58.3208,2092.4,2091.9,2.0]
[1617717739837,58.3208,2092.4,2091.9,2.9491]
[1617717740136,2.90695,2092.0,2091.9,4.90695]
[1617717740640,2.90695,2092.0,2091.9,2.90695]
[1617717740838,2.90695,2092.0,2090.9,0.9426]
[1617717741340,53.5946,2091.2,2089.2,30.0]
[1617717741538,53.5946,2091.2,2090.6,0.02]
[1617717742240,53.5946,2091.2,2091.1,2.90695]
[1617717744243,56.50155,2091.2,2091.1,2.90695]
[1617717745142,2.90695,2091.2,2091.1,2.90695]
[1617717745344,65.0465,2092.2,2091.1,32.90695]
[1617717745547,65.0465,2092.2,2091.1,4.82835]
[1617717745747,66.0147,2092.2,2091.1,36.82835]
[1617717746146,66.0147,2092.2,2091.6,2.90695]
[1617717746345,65.0465,2092.2,2091.6,6.08105]
[1617717747248,65.0465,2092.2,2091.6,8.08105]
[1617717747650,65.0465,2092.2,2091.6,6.08105]
[1617717748352,2.90695,2091.7,2091.6,3.86995]
[1617717748956,2.90695,2091.7,2091.6,4.90695]
[1617717750056,3.85985,2091.7,2091.6,4.90695]
[1617717750257,2.90695,2091.7,2091.6,4.90695]
[1617717750558,71.9989,2093.2,2091.6,34.90695]
[1617717750758,71.9989,2093.2,2091.6,37.25565]
[1617717751158,71.9989,2093.2,2091.6,7.25565]
[1617717751761,71.9989,2093.2,2091.6,4.90695]
[1617717752062,71.9989,2093.2,2091.6,34.90695]
[1617717752262,2.90695,2091.7,2091.6,36.93135]
[1617717753663,2.90695,2091.7,2091.6,6.93135]
[1617717754065,2.90695,2091.7,2091.6,4.90695]
[1617717754464,2.21215,2091.7,2091.6,4.90695]
[1617717757268,2.21215,2091.7,2091.6,2.90695]
[1617717760272,2.21215,2091.7,2091.1,2.90695]
[1617717762287,2.90695,2091.2,2091.1,2.90695]
[1617717770790,2.90695,2091.2,2090.9,0.02]
[1617717770993,2.90695,2091.2,2090.9,0.9718]
[1617717771692,5.24675,2091.2,2090.9,0.9718]
[1617717771892,5.24675,2091.2,2090.9,0.02]
[1617717772596,5.24675,2091.2,2090.7,2.90695]
[1617717772791,5.24675,2091.2,2090.7,3.86535]
[1617717773092,5.24675,2091.2,2090.7,2.90695]
[1617717773896,5.24675,2091.2,2090.7,3.86135]
[1617717773897,6.19425,2091.2,2090.7,3.86135]
[1617717774094,5.24675,2091.2,2090.7,2.90695]
[1617717774295,2.90695,2090.8,2090.7,2.90695]
[1617717775296,2.90695,2090.8,2090.7,3.85865]
[1617717775898,2.90695,2090.8,2089.4,32.9643]
[1617717776300,2.3398,2091.2,2090.5,2.90695]
[1617717776699,0.9541,2091.3,2090.5,2.90695]
[1617717777299,30.0,2091.6,2090.5,2.90695]
[1617717777501,13.0,2091.7,2090.5,2.90695]
[1617717778404,2.90695,2090.6,2090.5,2.90695]
[1617717780005,2.90695,2090.6,2090.5,4.90695]
[1617717781707,13.0,2091.7,2090.5,34.90695]
[1617717782107,13.0,2091.7,2090.5,37.49665]
[1617717782310,13.0,2091.7,2091.1,2.90695]
[1617717782507,13.9561,2091.7,2091.1,2.90695]
[1617717782707,13.0,2091.7,2091.1,2.90695]
[1617717783308,13.0,2091.7,2090.5,2.0]
[1617717783509,15.5023,2091.7,2090.2,0.9534]
[1617717783710,15.5023,2091.7,2090.0,30.0]
[1617717783912,16.4624,2091.7,2090.0,30.0]
[1617717784119,16.4624,2091.7,2090.1,2.0]
[1617717784312,15.5023,2091.7,2090.7,2.90695]
[1617717785413,15.5023,2091.7,2090.7,3.85585]
[1617717785711,15.5023,2091.7,2090.0,30.0]
[1617717785712,15.5023,2091.7,2089.8,2.0]
[1617717786215,15.5023,2091.7,2089.7,30.0]
[1617717786413,15.5023,2091.7,2090.2,2.90695]
[1617717786615,15.5023,2091.7,2090.2,3.87385]
[1617717786818,32.0,2091.6,2090.2,2.90695]
[1617717787018,30.0,2091.6,2090.2,2.90695]
[1617717787216,32.0,2091.6,2090.2,2.90695]
[1617717788515,2.90695,2090.3,2090.2,2.90695]
[1617717788715,2.90695,2090.3,2088.8,2.0]
[1617717788915,2.90695,2090.3,2088.9,2.0]
[1617717789727,32.90695,2090.3,2088.9,2.0]
[1617717790017,32.89695,2090.3,2088.9,2.0]
[1617717790419,30.0,2090.3,2088.9,2.0]
[1617717790619,44.6923,2090.6,2088.9,2.0]
[1617717791318,14.6923,2090.6,2088.9,2.9567]
[1617717791523,14.6923,2090.6,2088.9,2.0]
[1617717791723,42.6923,2090.6,2088.9,2.0]
[1617717792322,12.6923,2090.6,2088.9,2.0]
[1617717792620,12.6923,2090.6,2089.2,2.90695]
[1617717792823,12.6923,2090.6,2089.2,5.48095]
[1617717793820,30.0,2090.5,2089.2,5.48095]
[1617717794020,30.0,2090.5,2089.2,2.90695]
[1617717794419,2.90695,2089.3,2089.2,2.90695]
[1617717796220,4.72095,2089.3,2089.2,2.90695]
[1617717796524,4.72095,2089.3,2088.9,2.90695]
[1617717797522,4.72095,2089.3,2087.5,2.9555]
[1617717797822,5.66845,2089.3,2087.5,2.0]
[1617717798322,4.72095,2089.3,2087.5,1.98]
[1617717798621,1.814,2089.3,2088.3,2.90695]
[1617717799730,13.077,2089.4,2088.3,2.90695]
[1617717799924,13.077,2089.4,2088.3,4.90695]
[1617717800126,13.077,2089.4,2088.3,2.90695]
[1617717800623,13.077,2089.4,2087.6,30.0]
[1617717800624,13.077,2089.4,2088.6,2.90695]
[1617717802626,2.90695,2088.7,2088.6,2.90695]
[1617717805831,2.90695,2088.7,2088.6,4.90695]
[1617717806330,2.90695,2088.7,2088.6,2.90695]
[1617717806733,2.0,2090.4,2088.6,32.90695]
[1617717806931,0.26410519,2092.9,2088.6,32.90695]
[1617717806932,30.0,2090.9,2088.6,35.26625]
[1617717807434,30.0,2090.9,2088.7,2.0]
[1617717807631,2.0,2090.8,2088.7,2.0]
[1617717808331,32.0,2090.8,2088.7,2.0]
[1617717808632,2.0,2090.8,2089.5,2.90695]
[1617717808833,2.0,2090.8,2089.5,5.83585]
[1617717809339,30.0,2090.7,2089.5,5.83585]
[1617717809636,2.0,2090.8,2089.5,5.83585]
[1617717809838,13.2956,2091.0,2089.5,5.83585]
[1617717810438,13.2956,2091.0,2089.5,7.83585]
[1617717810641,13.2956,2091.0,2089.5,8.79775]
[1617717811340,13.2956,2091.0,2089.5,6.79775]
[1617717812739,13.2956,2091.0,2089.9,2.90695]
[1617717814448,14.2543,2091.0,2089.9,2.90695]
[1617717814643,2.90695,2090.0,2089.9,2.90695]
[1617717814940,14.2543,2091.0,2089.9,4.90695]
[1617717814941,13.2956,2091.0,2089.9,4.90695]
[1617717816643,13.2956,2091.0,2090.4,2.90695]
[1617717816842,13.2956,2091.0,2090.4,4.77775]
[1617717818248,13.2956,2091.0,2090.4,1.8708]
[1617717818650,2.90695,2090.5,2090.4,1.8708]
[1617717818961,3.86805,2090.5,2090.4,1.8708]
[1617717819151,2.90695,2090.5,2090.4,1.8708]
[1617717819562,13.2956,2091.0,2090.4,1.8708]
[1617717820651,13.2956,2091.0,2090.6,2.90695]
[1617717821054,13.0,2091.7,2090.6,2.90695]
[1617717822556,13.0,2091.7,2091.1,2.90695]
[1617717824459,13.0,2091.7,2090.3,30.0]
[1617717824662,2.90695,2091.2,2091.0,2.90695]
[1617717827469,2.90695,2091.2,2091.0,32.90695]
[1617717828173,13.0,2091.7,2091.0,32.90695]
[1617717828472,13.0,2091.7,2091.0,35.15505]
[1617717828673,15.90695,2091.7,2091.6,2.90695]
[1617717828871,15.90695,2091.7,2091.6,5.46425]
[1617717829070,15.90695,2091.7,2091.6,35.46425]
[1617717830874,13.0,2091.7,2091.6,35.46425]
[1617717832775,13.0,2091.7,2091.6,37.46425]
[1617717832978,13.0,2091.7,2091.6,35.46425]
[1617717833676,2.90695,2092.7,2091.6,35.46425]
[1617717833877,2.0,2094.1,2091.8,30.0]
[1617717834076,12.5834,2094.2,2091.8,32.0]
[1617717834680,12.5834,2094.2,2093.3,2.90695]
[1617717834885,12.8912,2094.1,2093.3,2.90695]
[1617717836681,2.90695,2093.4,2093.3,2.90695]
[1617717837385,12.8912,2094.1,2093.3,2.90695]
[1617717838182,12.5834,2094.2,2093.3,5.15665]
[1617717838381,5.098,2095.0,2093.3,5.15665]
[1617717838682,2.90695,2094.0,2093.8,2.90695]
[1617717838888,2.90695,2094.0,2093.8,5.73795]
[1617717839482,2.90695,2094.0,2093.8,2.831]
[1617717839883,2.90695,2094.0,2092.8,55.7578]
[1617717840084,2.90695,2094.0,2092.8,85.7578]
[1617717840484,2.90695,2094.0,2092.8,87.7578]
[1617717840789,2.90695,2094.0,2093.9,2.90695]
[1617717841284,5.098,2095.0,2093.9,2.90695]
[1617717841885,5.11134879,2095.0,2093.9,2.90695]
[1617717842686,2.90695,2094.0,2093.9,3.86305]
[1617717843686,2.90695,2094.0,2093.9,2.90695]
[1617717843887,2.90695,2094.0,2092.8,55.7578]
[1617717844192,2.90695,2094.0,2091.5,30.0]
[1617717844591,4.90695,2094.0,2091.6,2.0]
[1617717844789,2.0,2094.0,2092.8,2.90695]
[1617717845391,32.0,2094.0,2090.9,72.5542]
[1617717845692,2.0,2094.0,2090.9,72.5542]
[1617717846298,2.0,2093.8,2090.9,72.5542]
[1617717846494,30.0,2093.7,2090.9,72.5542]
[1617717846793,2.0,2093.6,2091.8,2.90695]
[1617717846994,30.0,2093.5,2091.8,3.85555]
[1617717847193,2.0,2093.4,2091.8,2.90695]
[1617717847994,2.0,2093.4,2090.9,72.5542]
[1617717848796,2.0,2093.4,2091.1,2.90695]
[1617717850201,0.0133027,2093.5,2091.1,2.90695]
[1617717850400,2.0,2093.3,2091.1,2.90695]
[1617717850899,2.90695,2091.5,2091.4,2.90695]
[1617717857106,2.90695,2091.5,2091.4,3.86905]
[1617717857310,13.7699,2092.9,2091.4,64.07015]
[1617717857508,13.7699,2092.9,2091.4,66.88355]
[1617717857812,13.3929,2093.0,2091.4,66.88355]
[1617717858209,5.098,2093.3,2091.4,66.88355]
[1617717858410,5.098,2093.3,2091.4,96.88355]
[1617717858711,5.098,2093.3,2091.5,2.0]
[1617717859011,5.098,2093.3,2091.4,96.88355]
[1617717859012,5.098,2093.3,2093.1,2.90695]
[1617717859310,5.098,2093.3,2093.1,5.74975]
[1617717860712,12.8866,2094.2,2093.1,5.74975]
[1617717860914,2.90695,2093.2,2093.1,5.74975]
[1617717861213,12.8866,2094.2,2093.1,5.74975]
[1617717862916,12.8866,2094.2,2093.8,2.90695]
[1617717863217,12.8866,2094.2,2093.8,5.58645]
[1617717865020,12.8866,2094.2,2094.1,2.90695]
[1617717866718,5.098,2095.0,2094.1,2.90695]
[1617717867017,5.098,2095.0,2094.7,2.90695]
[1617717868322,5.098,2095.0,2094.5,2.3823]
[1617717868620,5.098,2095.0,2093.8,2.6795]
[1617717868920,5.098,2095.0,2094.5,2.90695]
[1617717870823,5.098,2095.0,2094.5,32.90695]
[1617717871023,5.098,2095.0,2094.9,2.90695]
[1617717871223,5.098,2095.0,2094.9,5.77555]
[1617717871826,20.7124,2096.0,2094.9,5.77555]
[1617717872626,13.0944,2096.0,2095.0,30.0]
[1617717873027,13.0944,2096.0,2095.7,2.90695]
[1617717873230,13.0944,2096.0,2095.7,5.40925]
[1617717874928,16.00135,2096.0,2095.7,5.40925]
[1617717879332,2.90695,2096.0,2095.7,5.40925]
[1617717879835,2.90695,2096.0,2095.7,2.90695]
[1617717880636,2.90695,2096.0,2094.7,79.0977]
[1617717881039,2.7922,2096.4,2095.1,2.90695]
[1617717881740,4.7922,2096.4,2095.1,2.90695]
[1617717882746,2.7922,2096.4,2095.1,2.90695]
[1617717883046,5.098,2096.7,2095.9,2.90695]
[1617717885048,2.90695,2096.0,2095.9,2.90695]
[1617717886550,2.90695,2096.0,2095.9,5.0]
[1617717889153,2.90695,2096.0,2095.9,7.90695]
[1617717891655,2.90695,2096.0,2095.9,9.77055]
[1617717893059,2.90695,2096.0,2095.9,7.90695]
[1617717894563,2.90695,2096.0,2095.9,5.0]
[1617717895164,5.43075,2096.0,2095.9,5.0]
[1617717896663,2.90695,2096.0,2095.9,5.0]
[1617717908077,2.90695,2096.0,2095.9,5.9596]
[1617717908278,2.90695,2096.0,2095.9,5.0]
[1617717908477,2.90695,2096.0,2095.9,4.98]
[1617717913981,2.90695,2096.0,2095.9,5.9293]
[1617717914183,2.90695,2096.0,2095.9,4.98]
[1617717915186,2.90695,2096.0,2095.9,5.931]
[1617717915385,2.90695,2096.0,2095.9,8.83795]
[1617717916488,2.90695,2096.0,2095.9,7.88695]
[1617717917490,2.90695,2096.0,2095.9,8.83965]
[1617717918491,2.90695,2096.0,2095.9,7.88695]
[1617717924798,2.90695,2096.0,2095.9,4.98]
[1617717925799,2.90695,2096.0,2095.0,2.90695]
[1617717925800,32.90695,2096.0,2095.0,2.90695]
[1617717926001,4.90695,2096.0,2095.0,2.90695]
[1617717926200,4.90695,2096.0,2094.1,78.7129]
[1617717927002,30.0,2095.9,2094.1,78.7129]
[1617717927205,2.0,2095.8,2094.1,78.7129]
[1617717927509,30.0,2095.7,2094.7,2.90695]
[1617717927701,4.0001,2095.8,2094.7,2.90695]
[1617717927905,2.0001,2095.8,2094.7,2.90695]
[1617717928904,2.9455,2095.8,2094.7,2.90695]
[1617717929403,2.90695,2094.8,2094.7,2.90695]
[1617717937612,2.90695,2094.8,2094.1,78.7129]
[1617717938013,2.90695,2094.8,2093.3,2.0]
[1617717938214,2.90695,2094.8,2093.1,65.568]
[1617717938628,2.0,2094.7,2093.1,65.568]
[1617717938819,32.0,2094.7,2093.1,65.568]
[1617717939420,32.0,2094.7,2093.2,2.90695]
[1617717939617,30.0,2094.7,2093.2,2.90695]
[1617717939816,2.2189,2094.9,2093.2,2.90695]
[1617717940118,32.0,2094.8,2093.2,2.90695]
[1617717940316,2.0,2094.8,2093.2,2.90695]
[1617717940716,2.2189,2094.9,2093.2,2.90695]
[1617717940917,12.5861,2095.3,2093.2,2.90695]
[1617717941120,32.0,2095.2,2093.2,2.90695]
[1617717941517,2.90695,2093.3,2093.2,2.90695]
[1617717943416,61.8461,2094.5,2093.2,2.90695]
[1617717943617,2.571,2094.5,2094.0,2.90695]
[1617717943917,2.571,2094.5,2094.0,5.82195]
[1617717944117,2.571,2094.5,2094.0,2.915]
[1617717945521,2.90695,2094.1,2094.0,2.915]
[1617717946421,2.90695,2094.1,2093.9,2.90695]
[1617717946422,2.90695,2094.1,2093.2,1.8836]
[1617717946621,2.90695,2094.1,2093.0,60.2691]
[1617717946822,2.90695,2094.1,2093.0,58.2691]
[1617717947120,5.40485,2094.1,2093.0,58.2691]
[1617717947524,2.90695,2093.1,2093.0,61.17605]
[1617717947723,2.90695,2093.1,2093.0,2.90695]
[1617717950929,2.90695,2093.1,2092.3,55.8512]
[1617717951129,2.90695,2093.1,2092.2,2.0]
[1617717951333,2.90695,2093.1,2091.7,30.0]
[1617717951531,3.0148,2093.4,2092.7,2.90695]
[1617717952031,3.0148,2093.4,2091.7,30.0]
[1617717952730,61.0311,2093.6,2091.8,32.0]
[1617717953633,61.0311,2093.6,2092.7,2.90695]
[1617717955534,61.0311,2093.6,2091.8,32.0]
[1617717955535,61.0311,2093.6,2093.0,2.90695]
[1617717957535,61.0311,2093.6,2091.8,34.9264]
[1617717957536,2.90695,2092.3,2092.1,2.90695]
[1617717958038,5.56525,2092.3,2092.1,2.90695]
[1617717958535,5.56525,2092.3,2092.1,3.86465]
[1617717958738,5.56525,2092.3,2092.1,2.90695]
[1617717959536,2.90695,2092.3,2092.1,2.90695]
[1617717961539,2.90695,2092.4,2092.1,2.90695]
[1617717962040,54.0517,2092.6,2092.1,2.90695]
[1617717962739,26.6455,2093.5,2092.2,2.0]
[1617717962953,55.9404,2093.8,2092.2,32.0]
[1617717963659,55.9404,2093.8,2093.1,2.90695]
[1617717963845,55.9404,2093.8,2092.5,2.8659]
[1617717964044,55.9404,2093.8,2092.2,30.0]
[1617717965060,55.9404,2093.8,2092.2,32.0]
[1617717965647,55.9404,2093.8,2093.2,2.90695]
[1617717965946,55.9404,2093.8,2093.2,5.29715]
[1617717966945,55.9404,2093.8,2092.3,32.0]
[1617717967145,55.9404,2093.8,2092.3,2.0]
[1617717967748,2.90695,2092.5,2092.4,2.90695]
[1617717971153,3.86315,2092.5,2092.4,2.90695]
[1617717971855,2.90695,2092.5,2092.4,2.90695]
[1617717975562,13.3896,2093.8,2092.4,2.90695]
[1617717975761,13.3896,2093.8,2093.1,2.90695]
[1617717975959,13.3896,2093.8,2093.0,2.8544]
[1617717976560,13.3896,2093.8,2093.1,2.0]
[1617717976860,2.571,2094.5,2093.1,32.0]
[1617717977662,15.0,2094.8,2094.4,2.90695]
[1617717977862,15.0,2094.8,2094.4,35.81135]
[1617717978367,15.0,2094.8,2094.4,37.81135]
[1617717979662,15.0,2094.8,2094.7,2.90695]
[1617717981466,15.0,2094.8,2093.9,30.0]
[1617717981668,15.0,2094.8,2094.6,2.90695]
[1617717982470,15.0,2094.8,2094.6,4.80085]
[1617717983975,17.90695,2094.8,2094.6,4.80085]
[1617717984175,17.90695,2094.8,2094.6,2.90695]
[1617717985377,17.90695,2094.8,2093.3,30.0]
[1617717985584,19.91785,2094.8,2093.4,2.0]
[1617717985782,17.0109,2094.8,2094.3,2.90695]
[1617717986779,15.0,2094.8,2094.3,2.90695]
[1617717987580,15.0,2094.8,2094.3,4.73865]
[1617717987879,15.0,2094.8,2094.6,2.90695]
[1617717989784,2.90695,2094.7,2094.6,2.90695]
[1617717990784,2.90695,2094.7,2094.3,1.8317]
[1617717991084,2.90695,2094.7,2093.8,2.0]
[1617717991787,15.0,2094.8,2094.4,2.90695]
[1617717993588,15.0,2094.8,2093.8,2.0]
[1617717993788,15.0,2094.8,2094.2,2.90695]
[1617717993994,15.0,2094.8,2093.3,2.0]
[1617717994391,15.0,2094.8,2093.2,30.0]
[1617717994690,15.0,2094.8,2092.0,58.155]
[1617717995091,15.0,2094.8,2092.1,32.0]
[1617717995293,28.5556,2094.8,2092.1,34.4284]
[1617717995493,41.4362,2094.8,2092.1,34.4284]
[1617717995993,41.4362,2094.8,2093.4,2.90695]
[1617717997995,41.4362,2094.8,2093.7,2.90695]
[1617717999798,41.4362,2094.8,2093.0,32.0]
[1617717999999,2.90695,2093.8,2093.4,2.90695]
[1617718000198,2.90695,2093.8,2093.4,3.84855]
[1617718000599,2.90695,2093.8,2093.4,2.90695]
[1617718002001,2.90695,2093.5,2093.4,2.90695]
[1617718002204,4.96575,2093.5,2093.4,2.90695]
[1617718002402,4.96575,2093.5,2092.3,30.0]
[1617718002902,66.24185,2093.5,2091.0,32.0]
[1617718003904,63.3349,2093.5,2092.6,2.90695]
[1617718004106,2.0588,2093.5,2092.6,3.86485]
[1617718004304,2.1299,2094.2,2092.6,2.90695]
[1617718004907,4.1299,2094.2,2092.6,2.90695]
[1617718006009,2.90695,2092.7,2092.6,2.90695]
[1617718007111,5.16125,2092.7,2091.6,65.7982]
[1617718007310,5.16125,2092.7,2091.4,30.0]
[1617718007509,5.16125,2092.7,2091.5,30.0]
[1617718007911,2.2543,2092.7,2092.1,2.90695]
[1617718009811,63.8943,2093.0,2092.1,2.90695]
[1617718010011,2.90695,2092.2,2092.1,2.90695]
[1617718012816,2.90695,2092.2,2090.8,30.0]
[1617718013017,2.90695,2092.2,2090.8,32.0]
[1617718013316,2.90695,2092.2,2090.8,2.0]
[1617718014016,2.3745,2092.5,2091.5,2.90695]
[1617718015920,2.90695,2091.6,2091.5,2.90695]
[1617718018123,2.90695,2091.6,2091.5,7.90695]
[1617718019527,2.90695,2091.6,2091.5,5.0]
[1617718019727,4.98415,2091.6,2091.5,5.0]
[1617718021232,2.90695,2091.6,2091.5,5.0]
[1617718023836,2.90695,2091.6,2091.5,5.9704]
[1617718024136,2.90695,2091.6,2091.5,5.0]
[1617718027941,2.90695,2091.6,2091.5,7.2701]
[1617718030243,74.4673,2092.7,2091.5,10.17705]
[1617718030443,74.4673,2092.7,2091.5,40.17705]
[1617718031045,74.4673,2092.7,2091.5,10.17705]
[1617718032247,74.4673,2092.7,2091.8,2.90695]
[1617718033847,74.4673,2092.7,2091.5,5.0]
[1617718034249,2.90695,2091.6,2091.5,7.90695]
[1617718035450,74.4673,2092.7,2091.5,7.90695]
[1617718035749,74.4673,2092.7,2091.6,30.0]
[1617718036250,12.8971,2092.9,2092.2,2.90695]
[1617718036450,12.8971,2092.9,2092.2,5.83245]
[1617718037058,13.1842,2093.6,2092.2,5.83245]
[1617718038155,13.1842,2093.6,2092.7,2.90695]
[1617718038355,13.1842,2093.6,2092.7,4.84585]
[1617718040256,2.90695,2092.8,2092.7,4.84585]
[1617718040658,2.90695,2092.8,2092.0,30.0]
[1617718040857,2.90695,2092.8,2091.6,61.3888]
[1617718041356,2.90695,2092.8,2091.7,30.0]
[1617718041557,2.90695,2092.8,2091.7,32.0]
[1617718042157,13.1842,2093.6,2092.4,2.90695]
[1617718042357,13.1842,2093.6,2091.7,30.0]
[1617718042558,55.5264,2093.3,2091.5,5.0]
[1617718042957,55.5264,2093.3,2091.5,35.0]
[1617718043360,55.5264,2093.3,2091.5,37.0]
[1617718044260,55.5264,2093.3,2092.1,2.90695]
[1617718046263,2.90695,2092.2,2092.1,3.86665]
[1617718046463,2.90695,2092.2,2092.1,2.90695]
[1617718048762,2.90695,2092.2,2091.6,32.0]
[1617718049165,2.90695,2092.2,2091.6,30.0]
[1617718050070,5.22145,2092.2,2091.6,30.9527]
[1617718050268,2.3145,2092.2,2091.7,2.90695]
[1617718050473,2.3145,2092.2,2091.6,0.9527]
[1617718050669,57.2357,2092.2,2091.6,0.9527]
[1617718051567,57.2357,2092.2,2091.5,5.0]
[1617718052367,2.90695,2091.6,2091.5,7.90695]
[1617718053174,2.3497,2092.8,2091.5,7.90695]
[1617718054270,2.90695,2091.6,2091.5,7.90695]
[1617718054468,2.3497,2092.8,2091.5,7.90695]
[1617718055372,2.3497,2092.8,2091.5,37.90695]
[1617718055571,1.869,2093.3,2091.5,37.90695]
[1617718055775,75.7571,2093.5,2091.5,37.90695]
[1617718056373,75.7571,2093.5,2092.6,2.90695]
[1617718057474,75.7571,2093.5,2091.8,2.0087]
[1617718058275,75.7571,2093.5,2091.7,30.0]
[1617718058475,75.7571,2093.5,2092.3,2.90695]
[1617718058674,30.0,2093.4,2092.3,2.90695]
[1617718058875,32.0,2093.4,2091.5,5.0]
[1617718059175,63.9797,2092.6,2091.5,5.0]
[1617718059474,66.5143,2092.6,2091.5,5.0]
[1617718060475,2.90695,2091.6,2091.5,7.90695]
[1617718060777,2.90695,2091.6,2091.5,5.0]
[1617718062780,61.79755,2091.6,2091.5,5.0]
[1617718063881,2.90695,2091.6,2091.5,5.0]
[1617718064386,2.90695,2091.6,2091.5,7.90695]
[1617718066784,2.90695,2091.6,2091.5,8.87375]
[1617718067084,2.90695,2091.6,2091.5,7.90695]
[1617718071087,2.90695,2091.6,2091.5,5.0]
[1617718072591,2.90695,2091.6,2091.5,7.90695]
[1617718072989,2.90695,2091.6,2091.5,5.0]
[1617718074491,2.90695,2091.6,2091.5,5.9418]
[1617718074791,2.90695,2091.6,2091.5,5.0]
[1617718078093,2.90695,2091.6,2091.5,35.0]
[1617718079395,2.90695,2091.6,2091.5,5.0]
[1617718084903,2.19605,2091.6,2091.5,5.0]
[1617718087606,80.25895,2091.6,2091.5,5.0]
[1617718089710,2.19605,2091.6,2091.5,5.0]
[1617718097115,2.19605,2091.6,2091.5,7.5602]
[1617718097817,2.19605,2091.6,2091.5,37.5602]
[1617718098416,2.19605,2091.6,2091.5,7.5602]
[1617718098616,2.19605,2091.6,2091.5,10.46715]
[1617718098819,2.19605,2091.6,2091.5,40.46715]
[1617718105130,2.19605,2091.6,2091.5,42.46715]